[Event "Late-Titled-Tuesday-Blitz-June-04-2024"]
[Site "Chess.com"]
[Date "2024.06.04"]
[Round "3"]
[White "Shiner22"]
[Black "konradrutkowski"]
[Result "0-1"]
[WhiteElo "2281"]
[BlackElo "2537"]
[TimeControl "180+1"]
[EndTime "14:28:21 PDT"]
[Termination "konradrutkowski won on time"]

1. e4 {[%clk 0:03:00.9]} 1... e5 {[%clk 0:02:59]} 2. Nf3 {[%clk 0:03:00.2]} 2...
Nc6 {[%clk 0:02:58.8]} 3. Bc4 {[%clk 0:03:00]} 3... Nf6 {[%clk 0:02:58.5]} 4. d4
{[%clk 0:02:59.3]} 4... exd4 {[%clk 0:02:57.1]} 5. O-O {[%clk 0:02:59.3]} 5...
Nxe4 {[%clk 0:02:57.1]} 6. Nc3 {[%clk 0:02:55.2]} 6... Nxc3 {[%clk 0:02:44.1]}
7. bxc3 {[%clk 0:02:53.6]} 7... Be7 {[%clk 0:02:43.5]} 8. cxd4 {[%clk
0:02:48.8]} 8... d5 {[%clk 0:02:42.2]} 9. Bb5 {[%clk 0:02:48.6]} 9... O-O {[%clk
0:02:42]} 10. h3 {[%clk 0:02:38.7]} 10... Bf5 {[%clk 0:02:40.3]} 11. Re1 {[%clk
0:02:27]} 11... Nb4 {[%clk 0:02:33.6]} 12. Re2 {[%clk 0:02:11.6]} 12... c6
{[%clk 0:02:31.2]} 13. Ba4 {[%clk 0:02:11.5]} 13... b5 {[%clk 0:02:25.3]} 14.
Bb3 {[%clk 0:02:11.1]} 14... a5 {[%clk 0:02:24.3]} 15. a4 {[%clk 0:02:10.8]}
15... Bf6 {[%clk 0:02:15.4]} 16. Ba3 {[%clk 0:02:06]} 16... Re8 {[%clk
0:02:10.3]} 17. Ne5 {[%clk 0:02:00.6]} 17... Qc7 {[%clk 0:01:58]} 18. Qe1 {[%clk
0:01:53.3]} 18... Re6 {[%clk 0:01:28.9]} 19. axb5 {[%clk 0:01:48]} 19... Rae8
{[%clk 0:01:21.5]} 20. Bxb4 {[%clk 0:01:43.8]} 20... axb4 {[%clk 0:01:21]} 21.
Qxb4 {[%clk 0:01:42]} 21... c5 {[%clk 0:01:20.2]} 22. b6 {[%clk 0:01:26.4]}
22... Rxb6 {[%clk 0:01:10.5]} 23. Nd7 {[%clk 0:00:55.2]} 23... Bxd7 {[%clk
0:01:03.7]} 24. Rxe8+ {[%clk 0:00:51.9]} 24... Bxe8 {[%clk 0:01:03.3]} 25. Ra8
{[%clk 0:00:50.8]} 25... Re6 {[%clk 0:00:27.9]} 26. dxc5 {[%clk 0:00:39.4]}
26... h5 {[%clk 0:00:15.6]} 27. Bxd5 {[%clk 0:00:33.3]} 27... Re7 {[%clk
0:00:13.1]} 28. g3 {[%clk 0:00:22.4]} 28... Kh7 {[%clk 0:00:09.5]} 29. c4 {[%clk
0:00:20.2]} 29... Bd7 {[%clk 0:00:08.2]} 30. Qb1+ {[%clk 0:00:19.2]} 30... g6
{[%clk 0:00:07.4]} 31. c6 {[%clk 0:00:17.3]} 31... Bxh3 {[%clk 0:00:06.6]} 32.
Qd3 {[%clk 0:00:12.1]} 32... Re1+ {[%clk 0:00:03.4]} 33. Kh2 {[%clk 0:00:12.1]}
33... Bf5 {[%clk 0:00:03.4]} 34. Qf3 {[%clk 0:00:09.9]} 34... Re7 {[%clk
0:00:02.3]} 35. Ra5 {[%clk 0:00:08.1]} 35... h4 {[%clk 0:00:02.2]} 36. Ra2
{[%clk 0:00:06.3]} 36... hxg3+ {[%clk 0:00:02.3]} 37. fxg3 {[%clk 0:00:06.8]}
37... Kg7 {[%clk 0:00:02.5]} 38. Kg2 {[%clk 0:00:04.7]} 38... Qe5 {[%clk
0:00:01]} 39. g4 {[%clk 0:00:04.7]} 39... Be4 {[%clk 0:00:01.1]} 40. Bxe4 {[%clk
0:00:04.3]} 40... Qxe4 {[%clk 0:00:02]} 41. Qxe4 {[%clk 0:00:04.6]} 41... Rxe4
{[%clk 0:00:02.8]} 42. c7 {[%clk 0:00:04.9]} 42... Re8 {[%clk 0:00:02.7]} 43.
Ra7 {[%clk 0:00:03.7]} 43... Rc8 {[%clk 0:00:02.9]} 44. Kf3 {[%clk 0:00:01.8]}
44... Be5 {[%clk 0:00:03.5]} 45. Ke4 {[%clk 0:00:01.9]} 45... Rxc7 {[%clk
0:00:03.8]} 0-1

[Event "Late-Titled-Tuesday-Blitz-June-04-2024"]
[Site "Chess.com"]
[Date "2024.06.04"]
[Round "3"]
[White "laskakid"]
[Black "Darkbluelord"]
[Result "1-0"]
[WhiteElo "2379"]
[BlackElo "2121"]
[TimeControl "180+1"]
[EndTime "14:28:22 PDT"]
[Termination "laskakid won by resignation"]

1. Nf3 {[%clk 0:03:00.9]} 1... g6 {[%clk 0:02:57.8]} 2. e4 {[%clk 0:02:59.5]}
2... Bg7 {[%clk 0:02:56.4]} 3. d4 {[%clk 0:02:59.6]} 3... c5 {[%clk 0:02:56.7]}
4. dxc5 {[%clk 0:02:56.8]} 4... Na6 {[%clk 0:02:54.3]} 5. Nc3 {[%clk 0:02:37.3]}
5... Nxc5 {[%clk 0:02:53.3]} 6. Be3 {[%clk 0:02:37.2]} 6... b6 {[%clk 0:02:45]}
7. Nd4 {[%clk 0:02:22]} 7... d6 {[%clk 0:02:38.8]} 8. f3 {[%clk 0:02:21.8]} 8...
Nf6 {[%clk 0:02:38.2]} 9. Qd2 {[%clk 0:02:21.8]} 9... O-O {[%clk 0:02:33.5]} 10.
O-O-O {[%clk 0:02:19.1]} 10... Bd7 {[%clk 0:02:27.5]} 11. h4 {[%clk 0:02:19.1]}
11... Na4 {[%clk 0:02:27.2]} 12. Nd5 {[%clk 0:02:08.1]} 12... Nxd5 {[%clk
0:02:25.7]} 13. exd5 {[%clk 0:02:08.3]} 13... e5 {[%clk 0:02:00.8]} 14. dxe6
{[%clk 0:02:01]} 14... Bxe6 {[%clk 0:02:00.6]} 15. Bb5 {[%clk 0:01:33.6]} 15...
Nc5 {[%clk 0:01:23]} 16. Nxe6 {[%clk 0:01:30.8]} 16... Nxe6 {[%clk 0:01:17.7]}
17. Qxd6 {[%clk 0:01:25.2]} 17... Qf6 {[%clk 0:01:17.6]} 18. Qa3 {[%clk
0:01:05.2]} 18... Nc5 {[%clk 0:01:05.9]} 19. Kb1 {[%clk 0:00:58]} 19... Rfc8
{[%clk 0:01:04.1]} 20. Bd4 {[%clk 0:00:53.3]} 20... Qf5 {[%clk 0:00:59.7]} 21.
Bxg7 {[%clk 0:00:49.2]} 21... Kxg7 {[%clk 0:01:00]} 22. Bd3 {[%clk 0:00:46.6]}
22... Qf6 {[%clk 0:00:57.6]} 23. h5 {[%clk 0:00:43.8]} 23... g5 {[%clk
0:00:50.1]} 24. h6+ {[%clk 0:00:40.4]} 24... Kg8 {[%clk 0:00:50.5]} 25. Rh5
{[%clk 0:00:35.3]} 25... Nxd3 {[%clk 0:00:41.8]} 26. Qxd3 {[%clk 0:00:32.3]}
26... Rc5 {[%clk 0:00:39.2]} 27. a3 {[%clk 0:00:29]} 27... Rac8 {[%clk
0:00:39.1]} 28. Rd2 {[%clk 0:00:25.7]} 28... Qe7 {[%clk 0:00:27.7]} 29. Qd4
{[%clk 0:00:21.4]} 29... Qe5 {[%clk 0:00:23.5]} 30. Qxe5 {[%clk 0:00:20.8]}
30... Rxe5 {[%clk 0:00:22.3]} 31. Ka2 {[%clk 0:00:20.2]} 31... f6 {[%clk
0:00:22.7]} 32. Rd6 {[%clk 0:00:18.1]} 32... Rxc2 {[%clk 0:00:20]} 33. Rxf6
{[%clk 0:00:15.7]} 33... a5 {[%clk 0:00:16.9]} 34. f4 {[%clk 0:00:15.1]} 34...
Rb5 {[%clk 0:00:13.8]} 35. Rxg5+ {[%clk 0:00:13.9]} 35... Rxg5 {[%clk
0:00:13.7]} 36. fxg5 {[%clk 0:00:14.1]} 36... Rxg2 {[%clk 0:00:14.2]} 37. Rxb6
{[%clk 0:00:10.7]} 37... Rg1 {[%clk 0:00:12.5]} 38. Rb5 {[%clk 0:00:09.6]} 38...
Kf8 {[%clk 0:00:13.4]} 39. Rxa5 {[%clk 0:00:09.7]} 39... Re1 {[%clk 0:00:11.8]}
40. Rc5 {[%clk 0:00:09.4]} 40... Ke7 {[%clk 0:00:11.9]} 41. a4 {[%clk
0:00:09.7]} 41... Kd6 {[%clk 0:00:12.2]} 42. b4 {[%clk 0:00:09.8]} 42... Re2+
{[%clk 0:00:12.3]} 43. Kb3 {[%clk 0:00:10]} 43... Re3+ {[%clk 0:00:12.7]} 44.
Kc4 {[%clk 0:00:10]} 44... Re2 {[%clk 0:00:13.6]} 45. Kb5 {[%clk 0:00:10.1]}
45... Re1 {[%clk 0:00:14.5]} 46. a5 {[%clk 0:00:10.3]} 46... Re8 {[%clk
0:00:14.8]} 47. a6 {[%clk 0:00:10.2]} 47... Rb8+ {[%clk 0:00:15.4]} 48. Ka5
{[%clk 0:00:10.4]} 48... Ra8 {[%clk 0:00:15.8]} 49. Rf5 {[%clk 0:00:08.9]} 49...
Ke6 {[%clk 0:00:15.2]} 50. Rf6+ {[%clk 0:00:09.1]} 50... Ke5 {[%clk 0:00:15.3]}
51. b5 {[%clk 0:00:09.4]} 51... Rg8 {[%clk 0:00:15.5]} 52. Rf7 {[%clk 0:00:08]}
52... Rxg5 {[%clk 0:00:16.4]} 53. Rxh7 {[%clk 0:00:08.1]} 53... Rg1 {[%clk
0:00:15.6]} 54. a7 {[%clk 0:00:08]} 54... Ra1+ {[%clk 0:00:16.5]} 55. Kb6 {[%clk
0:00:08.2]} 55... Kd6 {[%clk 0:00:16.2]} 56. Kb7 {[%clk 0:00:08.4]} 56... Ra5
{[%clk 0:00:15.6]} 57. a8=Q {[%clk 0:00:08.6]} 57... Rxb5+ {[%clk 0:00:16.5]}
58. Ka6 {[%clk 0:00:08.2]} 58... Ra5+ {[%clk 0:00:16.7]} 59. Kxa5 {[%clk
0:00:07.7]} 1-0

[Event "Late-Titled-Tuesday-Blitz-June-04-2024"]
[Site "Chess.com"]
[Date "2024.06.04"]
[Round "3"]
[White "StellarChess"]
[Black "cristiano78"]
[Result "1-0"]
[WhiteElo "2533"]
[BlackElo "2237"]
[TimeControl "180+1"]
[EndTime "14:28:23 PDT"]
[Termination "StellarChess won by resignation"]

1. d4 {[%clk 0:02:55.6]} 1... Nf6 {[%clk 0:02:58.1]} 2. Bg5 {[%clk 0:02:55.3]}
2... c5 {[%clk 0:02:57.3]} 3. Bxf6 {[%clk 0:02:55.3]} 3... gxf6 {[%clk
0:02:57.4]} 4. d5 {[%clk 0:02:55.3]} 4... Qb6 {[%clk 0:02:56.8]} 5. Qc1 {[%clk
0:02:55.2]} 5... Bh6 {[%clk 0:02:56.8]} 6. e3 {[%clk 0:02:54.8]} 6... d6 {[%clk
0:02:56.5]} 7. Ne2 {[%clk 0:02:54.8]} 7... Nd7 {[%clk 0:02:54.6]} 8. c3 {[%clk
0:02:55.2]} 8... Ne5 {[%clk 0:02:54.4]} 9. Nf4 {[%clk 0:02:37.2]} 9... Bxf4
{[%clk 0:02:52.1]} 10. exf4 {[%clk 0:02:37.2]} 10... Ng6 {[%clk 0:02:51.6]} 11.
g3 {[%clk 0:02:34.5]} 11... h5 {[%clk 0:02:49.6]} 12. h4 {[%clk 0:02:33.2]}
12... Bf5 {[%clk 0:02:47.3]} 13. Nd2 {[%clk 0:02:32]} 13... O-O-O {[%clk
0:02:36.9]} 14. a4 {[%clk 0:02:31.5]} 14... Qc7 {[%clk 0:02:36.1]} 15. a5 {[%clk
0:02:31.5]} 15... e6 {[%clk 0:02:35.7]} 16. Bg2 {[%clk 0:02:27.7]} 16... exd5
{[%clk 0:02:34.3]} 17. O-O {[%clk 0:02:27.8]} 17... Rde8 {[%clk 0:02:32.8]} 18.
Bxd5 {[%clk 0:02:27]} 18... Bh3 {[%clk 0:02:27.6]} 19. Re1 {[%clk 0:02:26.4]}
19... Qd7 {[%clk 0:02:25.8]} 20. Bf3 {[%clk 0:02:15.4]} 20... Rhg8 {[%clk
0:02:17.3]} 21. Kh2 {[%clk 0:02:08]} 21... Bg4 {[%clk 0:02:12.6]} 22. a6 {[%clk
0:02:06.4]} 22... b6 {[%clk 0:02:10.3]} 23. Bxg4 {[%clk 0:01:46.3]} 23... Qxg4
{[%clk 0:02:09.7]} 24. Qd1 {[%clk 0:01:44.6]} 24... Qf5 {[%clk 0:02:04.6]} 25.
Qf3 {[%clk 0:01:42.5]} 25... d5 {[%clk 0:01:57.3]} 26. Nf1 {[%clk 0:01:25.3]}
26... Rxe1 {[%clk 0:01:38.6]} 27. Rxe1 {[%clk 0:01:26.2]} 27... Nxh4 {[%clk
0:01:16.9]} 28. gxh4 {[%clk 0:01:17.4]} 28... Rg4 {[%clk 0:01:16.6]} 29. Ne3
{[%clk 0:01:00.5]} 29... Rxh4+ {[%clk 0:01:15.7]} 30. Kg2 {[%clk 0:00:49.7]}
30... Qxf4 {[%clk 0:01:09.6]} 31. Qxf4 {[%clk 0:00:47.2]} 31... Rxf4 {[%clk
0:01:09.4]} 32. Nxd5 {[%clk 0:00:48.1]} 32... Ra4 {[%clk 0:01:02.4]} 33. Re8+
{[%clk 0:00:42.6]} 33... Kd7 {[%clk 0:00:59.9]} 34. Nxf6+ {[%clk 0:00:42.8]}
34... Kc6 {[%clk 0:00:59.1]} 35. Nxh5 {[%clk 0:00:35.9]} 35... Rxa6 {[%clk
0:00:58.9]} 36. Re2 {[%clk 0:00:36.1]} 36... Ra2 {[%clk 0:00:55.6]} 37. Kf3
{[%clk 0:00:36.5]} 37... a5 {[%clk 0:00:54.7]} 38. Ke3 {[%clk 0:00:37]} 38... b5
{[%clk 0:00:54.7]} 39. Nf6 {[%clk 0:00:34.9]} 39... a4 {[%clk 0:00:53.3]} 40.
Kd3 {[%clk 0:00:34.2]} 40... b4 {[%clk 0:00:53.4]} 41. Ng4 {[%clk 0:00:28.6]}
41... Ra1 {[%clk 0:00:46]} 42. Ne5+ {[%clk 0:00:27.4]} 42... Kd5 {[%clk
0:00:46]} 43. c4+ {[%clk 0:00:25.7]} 43... Ke6 {[%clk 0:00:44.3]} 44. Kc2 {[%clk
0:00:20.6]} 44... Kf6 {[%clk 0:00:40]} 45. Nd7+ {[%clk 0:00:20.7]} 45... Kg5
{[%clk 0:00:39.8]} 46. Nxc5 {[%clk 0:00:21.6]} 46... a3 {[%clk 0:00:34.5]} 47.
bxa3 {[%clk 0:00:21.7]} 47... bxa3 {[%clk 0:00:34.7]} 48. Kc3 {[%clk 0:00:19.5]}
48... f5 {[%clk 0:00:32.9]} 49. Nb3 {[%clk 0:00:19.7]} 49... Rf1 {[%clk
0:00:25.2]} 50. Rc2 {[%clk 0:00:17.8]} 50... Re1 {[%clk 0:00:19]} 51. Kb4 {[%clk
0:00:16.5]} 51... Kf4 {[%clk 0:00:18.6]} 52. Kxa3 {[%clk 0:00:16.9]} 52... Kf3
{[%clk 0:00:18.6]} 53. Kb4 {[%clk 0:00:17.4]} 53... Re2 {[%clk 0:00:18.7]} 54.
Rxe2 {[%clk 0:00:17.2]} 54... Kxe2 {[%clk 0:00:18.9]} 55. Nd4+ {[%clk
0:00:17.3]} 55... Kd3 {[%clk 0:00:18.3]} 56. Nxf5 {[%clk 0:00:17.7]} 1-0

[Event "Late-Titled-Tuesday-Blitz-June-04-2024"]
[Site "Chess.com"]
[Date "2024.06.04"]
[Round "3"]
[White "IlanSchnaider"]
[Black "Larax"]
[Result "0-1"]
[WhiteElo "2770"]
[BlackElo "2513"]
[TimeControl "180+1"]
[EndTime "14:28:24 PDT"]
[Termination "Larax won by resignation"]

1. d4 {[%clk 0:03:00.9]} 1... d5 {[%clk 0:02:59.7]} 2. Nf3 {[%clk 0:02:59.7]}
2... Bf5 {[%clk 0:02:58.9]} 3. g3 {[%clk 0:02:57.1]} 3... Nf6 {[%clk 0:02:57.4]}
4. Bg2 {[%clk 0:02:57.5]} 4... e6 {[%clk 0:02:57.7]} 5. O-O {[%clk 0:02:57.9]}
5... c6 {[%clk 0:02:51.2]} 6. Nbd2 {[%clk 0:02:49.1]} 6... h6 {[%clk 0:02:48.8]}
7. c4 {[%clk 0:02:47.6]} 7... Nbd7 {[%clk 0:02:48.2]} 8. b3 {[%clk 0:02:47.2]}
8... Bd6 {[%clk 0:02:47.4]} 9. Bb2 {[%clk 0:02:47.4]} 9... O-O {[%clk
0:02:46.7]} 10. Ne5 {[%clk 0:02:47.5]} 10... Qc7 {[%clk 0:02:41.6]} 11. f4
{[%clk 0:02:45.5]} 11... c5 {[%clk 0:02:24.5]} 12. e3 {[%clk 0:02:45.3]} 12...
dxc4 {[%clk 0:01:48.8]} 13. Ndxc4 {[%clk 0:02:42.7]} 13... Be7 {[%clk
0:01:41.9]} 14. Rc1 {[%clk 0:02:25.9]} 14... Rad8 {[%clk 0:01:39.6]} 15. Qf3
{[%clk 0:02:22]} 15... Be4 {[%clk 0:01:39.1]} 16. Qf2 {[%clk 0:02:22.1]} 16...
Bxg2 {[%clk 0:01:39]} 17. Qxg2 {[%clk 0:02:23]} 17... Qb8 {[%clk 0:01:28.2]} 18.
Rfd1 {[%clk 0:02:21.1]} 18... Nd5 {[%clk 0:01:27]} 19. e4 {[%clk 0:02:15.4]}
19... Nb4 {[%clk 0:01:13.2]} 20. d5 {[%clk 0:02:14.7]} 20... exd5 {[%clk
0:01:10.7]} 21. exd5 {[%clk 0:02:15.6]} 21... Nf6 {[%clk 0:01:03.5]} 22. Ne3
{[%clk 0:02:02.3]} 22... Nxa2 {[%clk 0:00:29.7]} 23. Rc4 {[%clk 0:02:00.8]}
23... Nb4 {[%clk 0:00:28.8]} 24. N5g4 {[%clk 0:01:55.8]} 24... Nxg4 {[%clk
0:00:22.3]} 25. Nxg4 {[%clk 0:01:56.7]} 25... Qd6 {[%clk 0:00:19.7]} 26. Qe4
{[%clk 0:01:51.7]} 26... Rfe8 {[%clk 0:00:16.6]} 27. Be5 {[%clk 0:01:49.7]}
27... Qg6 {[%clk 0:00:07.9]} 28. f5 {[%clk 0:01:49.6]} 28... Qh5 {[%clk
0:00:06.3]} 29. Qf3 {[%clk 0:01:47.1]} 29... Qg5 {[%clk 0:00:02.8]} 30. h4
{[%clk 0:01:45.8]} 30... Qh5 {[%clk 0:00:02.6]} 31. Nf6+ {[%clk 0:01:46.1]}
31... Bxf6 {[%clk 0:00:03.3]} 32. Qxh5 {[%clk 0:01:46.5]} 32... Rxe5 {[%clk
0:00:03.7]} 33. d6 {[%clk 0:01:45.2]} 33... Re3 {[%clk 0:00:03.4]} 34. Rg4
{[%clk 0:01:44.6]} 34... Bd4 {[%clk 0:00:02.4]} 35. Rdxd4 {[%clk 0:01:43.1]}
35... cxd4 {[%clk 0:00:01.8]} 36. Qxh6 {[%clk 0:01:43.7]} 36... Re1+ {[%clk
0:00:01.6]} 37. Kf2 {[%clk 0:01:43.6]} 37... Nd3+ {[%clk 0:00:01.9]} 38. Kg2
{[%clk 0:01:06.5]} 38... Re2+ {[%clk 0:00:02.2]} 39. Kf3 {[%clk 0:01:07.4]}
39... Re3+ {[%clk 0:00:02.2]} 40. Qxe3 {[%clk 0:01:08.1]} 40... dxe3 {[%clk
0:00:02.4]} 41. Rd4 {[%clk 0:01:05]} 41... Ne5+ {[%clk 0:00:02.5]} 42. Kxe3
{[%clk 0:01:04.2]} 42... Nc6 {[%clk 0:00:03.2]} 43. Rd5 {[%clk 0:01:03.8]} 43...
Kf8 {[%clk 0:00:03.8]} 44. g4 {[%clk 0:01:00.1]} 44... Ke8 {[%clk 0:00:04]} 45.
h5 {[%clk 0:00:59.3]} 45... Kd7 {[%clk 0:00:04.6]} 46. g5 {[%clk 0:00:59.7]}
46... Re8+ {[%clk 0:00:05.3]} 47. Kf4 {[%clk 0:00:59.6]} 47... Re1 {[%clk
0:00:05.3]} 48. h6 {[%clk 0:00:57.5]} 48... gxh6 {[%clk 0:00:05.5]} 49. gxh6
{[%clk 0:00:58.4]} 49... f6 {[%clk 0:00:06.1]} 50. Rd2 {[%clk 0:00:46.8]} 50...
Rh1 {[%clk 0:00:06.5]} 51. Rg2 {[%clk 0:00:47.5]} 51... Rxh6 {[%clk 0:00:06.3]}
52. Rg7+ {[%clk 0:00:48.2]} 52... Kxd6 {[%clk 0:00:07]} 53. Rxb7 {[%clk
0:00:48.4]} 53... Rh4+ {[%clk 0:00:07.7]} 54. Kg3 {[%clk 0:00:47.2]} 54... Rb4
{[%clk 0:00:08.6]} 55. Rf7 {[%clk 0:00:44.4]} 55... Rxb3+ {[%clk 0:00:08.9]} 56.
Kg4 {[%clk 0:00:45]} 56... Ne5+ {[%clk 0:00:07.9]} 57. Kh5 {[%clk 0:00:45.6]}
57... Nxf7 {[%clk 0:00:08.8]} 58. Kg6 {[%clk 0:00:45.9]} 58... Ke5 {[%clk
0:00:09.1]} 59. Kxf7 {[%clk 0:00:46.2]} 59... Kxf5 {[%clk 0:00:09.6]} 60. Ke7
{[%clk 0:00:28.2]} 60... Ke5 {[%clk 0:00:10.5]} 61. Kd7 {[%clk 0:00:29.1]} 61...
f5 {[%clk 0:00:10.1]} 62. Kc6 {[%clk 0:00:29.8]} 62... f4 {[%clk 0:00:11]} 63.
Kc5 {[%clk 0:00:30.7]} 63... Rd3 {[%clk 0:00:10.5]} 64. Kc4 {[%clk 0:00:31.6]}
0-1

[Event "Late-Titled-Tuesday-Blitz-June-04-2024"]
[Site "Chess.com"]
[Date "2024.06.04"]
[Round "3"]
[White "Kostukov_Alex"]
[Black "yaguigor"]
[Result "0-1"]
[WhiteElo "2305"]
[BlackElo "2610"]
[TimeControl "180+1"]
[EndTime "14:28:24 PDT"]
[Termination "yaguigor won on time"]

1. g3 {[%clk 0:03:00.9]} 1... d5 {[%clk 0:02:59.1]} 2. Bg2 {[%clk 0:03:01.3]}
2... c6 {[%clk 0:02:59.6]} 3. d3 {[%clk 0:03:01.8]} 3... e5 {[%clk 0:02:59.3]}
4. e4 {[%clk 0:03:02.3]} 4... Nf6 {[%clk 0:02:55.3]} 5. Nc3 {[%clk 0:02:59.8]}
5... dxe4 {[%clk 0:02:52]} 6. Nxe4 {[%clk 0:02:54]} 6... Nxe4 {[%clk 0:02:51.5]}
7. dxe4 {[%clk 0:02:54.9]} 7... Qxd1+ {[%clk 0:02:50.7]} 8. Kxd1 {[%clk
0:02:55.8]} 8... Bc5 {[%clk 0:02:47.9]} 9. f3 {[%clk 0:02:54.5]} 9... Be6 {[%clk
0:02:46.3]} 10. b3 {[%clk 0:02:45.1]} 10... a5 {[%clk 0:02:44.9]} 11. a4 {[%clk
0:02:39.6]} 11... Na6 {[%clk 0:02:43]} 12. Bd2 {[%clk 0:02:15.2]} 12... O-O-O
{[%clk 0:02:40.8]} 13. Kc1 {[%clk 0:02:14.8]} 13... Nb4 {[%clk 0:02:35.2]} 14.
Bh3 {[%clk 0:02:05.6]} 14... Bxh3 {[%clk 0:02:07.9]} 15. Nxh3 {[%clk 0:02:06.5]}
15... f6 {[%clk 0:02:08.5]} 16. Re1 {[%clk 0:01:54.3]} 16... Rd7 {[%clk
0:01:58.3]} 17. Be3 {[%clk 0:00:21.1]} 17... Bxe3+ {[%clk 0:01:55.2]} 18. Rxe3
{[%clk 0:00:22]} 18... Rhd8 {[%clk 0:01:54.7]} 19. Re2 {[%clk 0:00:18.1]} 19...
Rd1+ {[%clk 0:01:45.2]} 20. Kb2 {[%clk 0:00:18.1]} 20... R1d2 {[%clk 0:01:19.4]}
21. Rae1 {[%clk 0:00:15.9]} 21... Nd3+ {[%clk 0:01:16.5]} 22. Kc3 {[%clk
0:00:12.6]} 22... Nxe1 {[%clk 0:01:14.2]} 23. Rxd2 {[%clk 0:00:12.3]} 23... Nxf3
{[%clk 0:01:05.4]} 24. Rf2 {[%clk 0:00:09.2]} 24... Nd4 {[%clk 0:01:01.6]} 25.
Ng1 {[%clk 0:00:08.2]} 25... b5 {[%clk 0:00:58.6]} 26. axb5 {[%clk 0:00:06.7]}
26... cxb5 {[%clk 0:00:58.2]} 27. Nf3 {[%clk 0:00:05.9]} 27... b4+ {[%clk
0:00:53]} 28. Kc4 {[%clk 0:00:05.6]} 28... Kb7 {[%clk 0:00:43.7]} 29. Nxd4
{[%clk 0:00:04.3]} 29... Rxd4+ {[%clk 0:00:42.9]} 30. Kb5 {[%clk 0:00:05]} 30...
Rxe4 {[%clk 0:00:42.7]} 31. Kxa5 {[%clk 0:00:05.5]} 31... Rd4 {[%clk 0:00:38.5]}
32. Kb5 {[%clk 0:00:05.5]} 32... h5 {[%clk 0:00:37.6]} 33. Kc5 {[%clk 0:00:03]}
33... Kc7 {[%clk 0:00:33.6]} 34. Re2 {[%clk 0:00:02.5]} 34... Kd7 {[%clk
0:00:33.1]} 35. Rf2 {[%clk 0:00:02.9]} 35... Ke6 {[%clk 0:00:32.9]} 36. Re2
{[%clk 0:00:03.1]} 36... g5 {[%clk 0:00:32]} 37. Rf2 {[%clk 0:00:02.9]} 37... h4
{[%clk 0:00:30.7]} 38. gxh4 {[%clk 0:00:02.2]} 38... Rxh4 {[%clk 0:00:31.4]} 39.
Rg2 {[%clk 0:00:03.1]} 39... Rd4 {[%clk 0:00:27.4]} 40. Rf2 {[%clk 0:00:02.4]}
40... g4 {[%clk 0:00:26.7]} 41. Rg2 {[%clk 0:00:02.6]} 41... f5 {[%clk
0:00:26.4]} 42. Rf2 {[%clk 0:00:02.6]} 42... f4 {[%clk 0:00:24.9]} 43. Rf1
{[%clk 0:00:02.6]} 43... Kf5 {[%clk 0:00:25.3]} 44. Re1 {[%clk 0:00:02.5]} 44...
f3 {[%clk 0:00:18.9]} 45. Rf1 {[%clk 0:00:02.2]} 45... Kf4 {[%clk 0:00:18.7]}
46. Re1 {[%clk 0:00:01.5]} 46... Rd2 {[%clk 0:00:17.2]} 47. Kxb4 {[%clk
0:00:01.3]} 47... Rxc2 {[%clk 0:00:17.5]} 48. Ka5 {[%clk 0:00:01.6]} 48... e4
{[%clk 0:00:17.2]} 49. b4 {[%clk 0:00:02.5]} 49... f2 {[%clk 0:00:17]} 50. Rd1
{[%clk 0:00:03.4]} 50... e3 {[%clk 0:00:16.5]} 0-1

[Event "Late-Titled-Tuesday-Blitz-June-04-2024"]
[Site "Chess.com"]
[Date "2024.06.04"]
[Round "3"]
[White "Jospem"]
[Black "cassoulet"]
[Result "0-1"]
[WhiteElo "3028"]
[BlackElo "2759"]
[TimeControl "180+1"]
[EndTime "14:28:26 PDT"]
[Termination "cassoulet won on time"]

1. e4 {[%clk 0:03:00.9]} 1... c5 {[%clk 0:02:59.4]} 2. Nf3 {[%clk 0:03:00.6]}
2... e6 {[%clk 0:02:59.5]} 3. c3 {[%clk 0:03:00.6]} 3... d5 {[%clk 0:02:56.6]}
4. e5 {[%clk 0:03:00.7]} 4... Bd7 {[%clk 0:02:55.3]} 5. g3 {[%clk 0:03:00.8]}
5... Ne7 {[%clk 0:02:51.8]} 6. Bg2 {[%clk 0:03:01]} 6... Ng6 {[%clk 0:02:50.2]}
7. O-O {[%clk 0:03:01.2]} 7... Bb5 {[%clk 0:02:44.7]} 8. d3 {[%clk 0:03:00.2]}
8... Nd7 {[%clk 0:02:43.7]} 9. Re1 {[%clk 0:03:00]} 9... Qc7 {[%clk 0:02:43.5]}
10. Qe2 {[%clk 0:02:58.6]} 10... h5 {[%clk 0:02:40.6]} 11. h4 {[%clk 0:02:57.4]}
11... Be7 {[%clk 0:02:36]} 12. Na3 {[%clk 0:02:56.2]} 12... Ba6 {[%clk
0:02:35.5]} 13. c4 {[%clk 0:02:56.4]} 13... d4 {[%clk 0:02:32.6]} 14. Nc2 {[%clk
0:02:53]} 14... Rd8 {[%clk 0:02:17.3]} 15. Na3 {[%clk 0:02:41.7]} 15... b6
{[%clk 0:02:16.1]} 16. Nb5 {[%clk 0:02:24.3]} 16... Qb8 {[%clk 0:02:15.8]} 17.
Bg5 {[%clk 0:02:24.5]} 17... Bxb5 {[%clk 0:02:13.5]} 18. Bxe7 {[%clk 0:02:23.9]}
18... Kxe7 {[%clk 0:02:12.6]} 19. cxb5 {[%clk 0:02:24.5]} 19... Kf8 {[%clk
0:02:04.5]} 20. a4 {[%clk 0:02:23.9]} 20... Ne7 {[%clk 0:02:00.3]} 21. Ng5
{[%clk 0:02:23]} 21... Kg8 {[%clk 0:01:54.4]} 22. Bh3 {[%clk 0:02:20.8]} 22...
Rh6 {[%clk 0:01:50.5]} 23. a5 {[%clk 0:02:15.8]} 23... Nd5 {[%clk 0:01:29.7]}
24. axb6 {[%clk 0:02:12.1]} 24... axb6 {[%clk 0:01:29.5]} 25. Bg2 {[%clk
0:02:05.5]} 25... Nf8 {[%clk 0:01:25.2]} 26. Ra6 {[%clk 0:01:53.7]} 26... Nc7
{[%clk 0:01:19]} 27. Qf3 {[%clk 0:01:41.3]} 27... Rd7 {[%clk 0:01:12.9]} 28.
Raa1 {[%clk 0:01:37.7]} 28... Nd5 {[%clk 0:01:06.9]} 29. Ra6 {[%clk 0:01:33.2]}
29... Nc7 {[%clk 0:01:01.4]} 30. Ra4 {[%clk 0:01:32.8]} 30... Nd5 {[%clk
0:00:43.4]} 31. Qe2 {[%clk 0:01:23.5]} 31... Ra7 {[%clk 0:00:39.3]} 32. Rxa7
{[%clk 0:01:23.4]} 32... Qxa7 {[%clk 0:00:40.2]} 33. Bxd5 {[%clk 0:01:23.9]}
33... exd5 {[%clk 0:00:40.5]} 34. Qf3 {[%clk 0:01:24.5]} 34... Qd7 {[%clk
0:00:40]} 35. Ra1 {[%clk 0:01:19.1]} 35... Qb7 {[%clk 0:00:22.5]} 36. Qf5 {[%clk
0:00:51.7]} 36... Ne6 {[%clk 0:00:22.3]} 37. f4 {[%clk 0:00:26.6]} 37... Nxg5
{[%clk 0:00:20.9]} 38. hxg5 {[%clk 0:00:27.5]} 38... Re6 {[%clk 0:00:20.3]} 39.
b3 {[%clk 0:00:14.9]} 39... g6 {[%clk 0:00:20.6]} 40. Qh3 {[%clk 0:00:14.4]}
40... Qd7 {[%clk 0:00:21.2]} 41. Rf1 {[%clk 0:00:10.8]} 41... Qxb5 {[%clk
0:00:19.9]} 42. f5 {[%clk 0:00:11]} 42... Rxe5 {[%clk 0:00:20.1]} 43. fxg6
{[%clk 0:00:11.3]} 43... fxg6 {[%clk 0:00:19]} 44. Qc8+ {[%clk 0:00:11.5]} 44...
Qe8 {[%clk 0:00:19.1]} 45. Qc7 {[%clk 0:00:10.1]} 45... Qe7 {[%clk 0:00:17.1]}
46. Qxb6 {[%clk 0:00:07.9]} 46... Kg7 {[%clk 0:00:16.2]} 47. Qb8 {[%clk
0:00:03.4]} 47... Rxg5 {[%clk 0:00:15.5]} 48. Kg2 {[%clk 0:00:03.7]} 48... Re5
{[%clk 0:00:13.7]} 49. Rf2 {[%clk 0:00:02.2]} 49... h4 {[%clk 0:00:14]} 50. gxh4
{[%clk 0:00:01.8]} 50... Re3 {[%clk 0:00:14]} 51. Qf4 {[%clk 0:00:02]} 51...
Rxd3 {[%clk 0:00:11.1]} 52. Kh2 {[%clk 0:00:02.6]} 52... Re3 {[%clk 0:00:11.2]}
53. h5 {[%clk 0:00:02.7]} 53... Re4 {[%clk 0:00:11]} 0-1